{"text_format":"3","workbook":"xlsx","n_sheets":1,"sheets":["Bid Form Pricing Sheet"],"not_rendered":{"defined_names":3},"read":"whole","date_system":"1900"}

{"sheet":"Bid Form Pricing Sheet","index":0,"n_rows":32,"n_cols":9,"rows_kept":32,"merged":[[0,3,0,8],[1,3,1,8],[2,3,2,8],[3,3,3,8],[31,3,31,7]]}
["PRICE SCHEDULE",null,null,"PRICE SCHEDULE"]
["Lee Hwy (Route 29) at Glebe Rd (Route 120) Intersection Improvements Project ",null,null,"North Glebe Road Roadside Ditch Repair\nexisting ditch 1,000+ feet upstream from George Washington Memorial Parkway \n"]
["All Unit Prices on the Price Shedule shall reflect and be inclusive of all costs, including but not limited to:  tasks, labor, supplies, tools, equipment, transportation, clearing and grubbing, demolition, material provisions and installations, materials testing, disposals, incidentals, and all things necessary to perform the work as set forth in accordance with project plans and specifications and in compliance with all Arlington County and VDOT Standards and Specifications.",null,null,"All Unit Prices on the Price Schedule shall reflect and be inclusive of all costs, including but not limited to:  tasks, labor, supplies, tools, equipment, transportation, clearing and grubbing, demolition, material provisions and installations, materials testing, disposals, incidentals, and all things necessary to perform the work as set forth in accordance with project plans and specifications and in compliance with all Arlington County, National Park Service (NPS), and VDOT Standards and Specifications."]
[{"$nulls":3},"PLEASE PROVIDE PRICES IN ALL CELLS HIGHLIGHTED IN BLUE.  BIDDERS SHALL INCLUDE A BID PRICE FOR ALL ITEMS.  FAILURE TO PROVIDE A PRICE FOR ALL ITEMS, OR ANY MODIFICATIONS OR ADDITIONS TO THE BID FORM PRICING SHEET MAY RESULT IN BID REJECTION."]
[{"$nulls":3},"ITEM","DESCRIPTION","QTY","UNIT","UNIT PRICE","TOTAL"]
["02200","C1","13",1,"Mobilization / Demobilization - General",1,"LS",null,{"$f":"H6*F6","v":0}]
["02750","C2","6",{"$f":"D6+1","v":2},"Maintenance & Control of Traffic",1,"LS",null,{"$f":"H7*F7","v":0}]
["02750","C2","7",{"$f":"D7+1","v":3},"Clearing and Grubbing",1,"LS",null,0]
["02611","C2","11",4,"Super Silt Fence",200,"LF",null,0]
["02611","C2","18",5,"Pump Around Diversion",5,"WK",null,0]
["02611","C2","19",6,"Remove Existing Guardrail",170,"LF",null,0]
["03100","C2","20",7,"VDOT Guardrail GR-MGS1A, 9' Post",100,"LF",null,0]
["03100","C2","22",8,"VDOT Guardrail GR-2A",175,"LF",null,0]
["03100","C2","23",9,"Guardrail Height Transition, VDOT GR-MGS4",2,"EA",null,0]
[{"$nulls":3},10,"Tangent End Terminal, GR-9",1,"EA",null,0]
[{"$nulls":3},11,"Flared End Terminal, GR-7",1,"EA",null,{"$f":"H16*F16","v":0}]
[{"$nulls":3},12,"Grouted Riprap, 24\"",270,"SY",null,{"$f":"H17*F17","v":0}]
[{"$nulls":3},13,"Guardrail Post Core Drilling",40,"EA",null,{"$f":"H18*F18","v":0}]
["02600","C3","1",14,"Borrow Excavation/Guardrail Backfill",5,"CY",null,0]
[{"$nulls":3},15,"Demolition (in-channel debris disposal)",25,"CY",null,{"$f":"H20*F20","v":0}]
[{"$nulls":3},{"$f":"D20+1","v":16},"Topsoil Import",200,"CY",null,0]
[{"$nulls":3},17,"Finish Grading",0.3,"AC",null,0]
[{"$nulls":3},18,"Temporary Lighting During Construction",1,"LS",null,0]
[{"$nulls":3},19,"Class 2 Reinforced Bed Material",1500,"CY",null,0]
[{"$nulls":3},20,"Rock Stepping Stone Crossing (grouted)",1,"LS",null,0]
["02600","C3","3",21,"Class II Abutment Protection (grouted)",35,"CY",null,0]
["02600","C3","3",22,"Imbricated Riprap",12,"CY",null,0]
["02600","C3","7",23,"Geotextile Fabric",1500,"SY",null,0]
[{"$nulls":3},24,"Riparian Buffer Seed (Stream edge, under matting)",15,"LB",null,0]
["02600","C3","7",25,"Stabilization (Seed and Straw, outside channel)",1200,"SY",null,{"$f":"H30*F30","v":0}]
[{"$nulls":3},{"$f":"D30+1","v":26},"Coir Fiber Matting (Channel and steep slopes)",2133,"EA",null,{"$f":"H31*F31","v":0}]
[{"$nulls":3},"TOTAL BID PRICE = ",{"$nulls":4},{"$f":" SUM(I6:I31)","v":{"v":0,"d":"$0.00"}}]